[Event "Live Chess"]
[Site "Chess.com"]
[Date "2023.05.21"]
[Round "-"]
[White "ramses-IIG"]
[Black "raminguy"]
[Result "0-1"]
[WhiteElo "870"]
[BlackElo "1958"]
[TimeControl "300"]
[EndTime "19:44:26 PDT"]
[Termination "raminguy won on time"]

1. e4 {[%clk 0:04:54.4]} 1... e5 {[%clk 0:04:58.8]} 2. Nf3 {[%clk 0:04:54.3]}
2... Nc6 {[%clk 0:04:57.7]} 3. Bc4 {[%clk 0:04:52.6]} 3... Bc5 {[%clk
0:04:56.7]} 4. c3 {[%clk 0:04:50.9]} 4... Nf6 {[%clk 0:04:56]} 5. d3 {[%clk
0:04:50.2]} 5... O-O {[%clk 0:04:54.4]} 6. h4 {[%clk 0:04:48.3]} 6... d5 {[%clk
0:04:53.2]} 7. exd5 {[%clk 0:04:46.3]} 7... Nxd5 {[%clk 0:04:52.2]} 8. h5 {[%clk
0:04:46.2]} 8... Nf4 {[%clk 0:04:43.7]} 9. Bxf4 {[%clk 0:04:34.8]} 9... exf4
{[%clk 0:04:42.1]} 10. Qd2 {[%clk 0:04:25.4]} 10... Re8+ {[%clk 0:04:40.7]} 11.
Kd1 {[%clk 0:04:21.8]} 11... Na5 {[%clk 0:04:16.8]} 12. Kc2 {[%clk 0:04:20.1]}
12... Nxc4 {[%clk 0:04:15.4]} 13. dxc4 {[%clk 0:04:15.5]} 13... Bf5+ {[%clk
0:04:13.9]} 14. Kb3 {[%clk 0:04:08.2]} 14... Qxd2 {[%clk 0:04:09.7]} 15. Nbxd2
{[%clk 0:04:08.1]} 15... Bxf2 {[%clk 0:04:05.3]} 16. h6 {[%clk 0:03:59]} 16...
g6 {[%clk 0:04:02.1]} 17. Kb4 {[%clk 0:03:29.8]} 17... c6 {[%clk 0:03:58.2]} 18.
c5 {[%clk 0:03:27.1]} 18... Be6 {[%clk 0:03:56]} 19. c4 {[%clk 0:03:11.2]} 19...
a5+ {[%clk 0:03:55.9]} 20. Kb3 {[%clk 0:03:09.9]} 20... Bxc5 {[%clk 0:03:52]}
21. Ne4 {[%clk 0:03:06]} 21... a4+ {[%clk 0:03:47.9]} 22. Kc3 {[%clk 0:03:01.9]}
22... Bb6 {[%clk 0:03:44.2]} 23. Nd6 {[%clk 0:02:58]} 23... Ba5+ {[%clk
0:03:40.1]} 24. Kc2 {[%clk 0:02:52.3]} 24... Red8 {[%clk 0:03:30.7]} 25. Nxb7
{[%clk 0:02:49.7]} 25... Bf5+ {[%clk 0:03:28.9]} 26. Kc1 {[%clk 0:02:38.7]}
26... Rd7 {[%clk 0:03:02.5]} 27. Nxa5 {[%clk 0:02:36.5]} 27... Rxa5 {[%clk
0:03:01.7]} 28. Re1 {[%clk 0:02:12.1]} 28... Kf8 {[%clk 0:02:57]} 29. Ne5 {[%clk
0:02:03.2]} 29... Rd4 {[%clk 0:02:51.8]} 30. Rd1 {[%clk 0:01:32.7]} 30... Rxd1+
{[%clk 0:02:49.8]} 31. Kxd1 {[%clk 0:01:32.6]} 31... Rxe5 {[%clk 0:02:48.8]} 32.
b3 {[%clk 0:01:24.6]} 32... Bg4+ {[%clk 0:02:41.9]} 33. Kd2 {[%clk 0:01:22.5]}
33... Re2+ {[%clk 0:02:37.8]} 34. Kd3 {[%clk 0:01:20.6]} 34... Rxg2 {[%clk
0:02:31.5]} 35. bxa4 {[%clk 0:01:19.7]} 35... Bf5+ {[%clk 0:02:27.7]} 36. Kd4
{[%clk 0:01:18]} 36... Rd2+ {[%clk 0:02:23.3]} 37. Kc5 {[%clk 0:01:16.9]} 37...
Rc2 {[%clk 0:02:21.3]} 38. a5 {[%clk 0:01:07.9]} 38... Be6 {[%clk 0:02:18.5]}
39. Kb6 {[%clk 0:00:55.5]} 39... Rxc4 {[%clk 0:02:15.6]} 40. a6 {[%clk
0:00:54.7]} 40... Rb4+ {[%clk 0:02:14.9]} 41. Kxc6 {[%clk 0:00:44.7]} 41... Ra4
{[%clk 0:02:12.9]} 42. Kb6 {[%clk 0:00:42.5]} 42... g5 {[%clk 0:02:09.7]} 43. a7
{[%clk 0:00:40.9]} 43... Bd5 {[%clk 0:02:05.1]} 44. Rd1 {[%clk 0:00:36.5]} 44...
Be4 {[%clk 0:01:58.5]} 45. Rd8+ {[%clk 0:00:30.5]} 45... Ke7 {[%clk 0:01:56.9]}
46. Rh8 {[%clk 0:00:26.5]} 46... g4 {[%clk 0:01:55.1]} 47. a3 {[%clk 0:00:15.8]}
47... g3 {[%clk 0:01:50.3]} 48. Rc8 {[%clk 0:00:11.7]} 48... g2 {[%clk
0:01:47.8]} 49. Rc7+ {[%clk 0:00:11.3]} 49... Kf6 {[%clk 0:01:45.7]} 50. Rc5
{[%clk 0:00:08.8]} 50... g1=Q {[%clk 0:01:43]} 51. Kc7 {[%clk 0:00:08.1]} 51...
Qxc5+ {[%clk 0:01:41]} 52. Kd8 {[%clk 0:00:02.6]} 52... Rxa7 {[%clk 0:01:39.1]}
53. Ke8 {[%clk 0:00:00.3]} 53... Qc7 {[%clk 0:01:38.6]} 0-1

[Event "Live Chess"]
[Site "Chess.com"]
[Date "2023.05.21"]
[Round "-"]
[White "therealab0ne"]
[Black "GEMdzq"]
[Result "0-1"]
[WhiteElo "717"]
[BlackElo "2280"]
[TimeControl "300"]
[EndTime "19:45:54 PDT"]
[Termination "GEMdzq won by resignation"]

1. e4 {[%clk 0:04:58.8]} 1... d6 {[%clk 0:04:57.7]} 2. Nc3 {[%clk 0:04:55.1]}
2... Nf6 {[%clk 0:04:57.2]} 3. Nf3 {[%clk 0:04:54.2]} 3... g6 {[%clk 0:04:54]}
4. d3 {[%clk 0:04:51.6]} 4... Bg7 {[%clk 0:04:52.5]} 5. Bg5 {[%clk 0:04:50.1]}
5... h6 {[%clk 0:04:50]} 6. Bxf6 {[%clk 0:04:49.4]} 6... Bxf6 {[%clk 0:04:49.9]}
7. Be2 {[%clk 0:04:43.8]} 7... c5 {[%clk 0:04:47.8]} 8. Nd5 {[%clk 0:04:40.8]}
8... Bg7 {[%clk 0:04:46.3]} 9. O-O {[%clk 0:04:39.1]} 9... Nc6 {[%clk
0:04:45.5]} 10. d4 {[%clk 0:04:33.2]} 10... cxd4 {[%clk 0:04:43.4]} 11. Bb5
{[%clk 0:04:30.6]} 11... O-O {[%clk 0:04:39.9]} 12. Bxc6 {[%clk 0:04:26.1]}
12... bxc6 {[%clk 0:04:39.8]} 13. Nxd4 {[%clk 0:04:23.9]} 13... cxd5 {[%clk
0:04:38.1]} 14. exd5 {[%clk 0:04:23.2]} 14... Bb7 {[%clk 0:04:35.6]} 15. Nc6
{[%clk 0:04:10]} 15... Bxc6 {[%clk 0:04:34.1]} 16. dxc6 {[%clk 0:04:09.3]} 16...
Qb6 {[%clk 0:04:33]} 17. h3 {[%clk 0:04:04.8]} 17... Qxc6 {[%clk 0:04:30.5]} 18.
Re1 {[%clk 0:04:03.2]} 18... e6 {[%clk 0:04:28.6]} 19. a4 {[%clk 0:03:56.8]}
19... d5 {[%clk 0:04:27.6]} 20. c3 {[%clk 0:03:55]} 20... Rab8 {[%clk
0:04:26.4]} 21. b4 {[%clk 0:03:48.2]} 21... Qxc3 {[%clk 0:04:24]} 22. Rc1 {[%clk
0:03:38]} 22... Qxb4 {[%clk 0:04:16.1]} 23. Rc7 {[%clk 0:03:26]} 23... Qb6
{[%clk 0:04:05.9]} 24. Qc2 {[%clk 0:03:17.5]} 24... Rb7 {[%clk 0:04:03.5]} 25.
Rc6 {[%clk 0:03:14.2]} 25... Qb2 {[%clk 0:04:01.4]} 26. Qxb2 {[%clk 0:02:59.2]}
26... Rxb2 {[%clk 0:04:01.3]} 27. Rec1 {[%clk 0:02:56.9]} 27... Bd4 {[%clk
0:03:58.4]} 28. R6c2 {[%clk 0:02:49.5]} 28... Rxc2 {[%clk 0:03:56.9]} 29. Rxc2
{[%clk 0:02:48.8]} 29... Rb8 {[%clk 0:03:56.4]} 30. Kf1 {[%clk 0:02:46.1]} 30...
Rb1+ {[%clk 0:03:54.4]} 31. Ke2 {[%clk 0:02:45.1]} 31... Rb2 {[%clk 0:03:54.1]}
32. Kd3 {[%clk 0:02:41]} 32... Rxc2 {[%clk 0:03:53.1]} 33. Kxc2 {[%clk
0:02:38.3]} 33... Bxf2 {[%clk 0:03:52.2]} 34. Kb3 {[%clk 0:02:32.9]} 34... e5
{[%clk 0:03:52.1]} 35. Kb4 {[%clk 0:02:32]} 35... e4 {[%clk 0:03:50.2]} 0-1

[Event "Live Chess"]
[Site "Chess.com"]
[Date "2023.05.21"]
[Round "-"]
[White "manthanit"]
[Black "grillage"]
[Result "0-1"]
[WhiteElo "1060"]
[BlackElo "1809"]
[TimeControl "300"]
[EndTime "19:46:47 PDT"]
[Termination "grillage won by checkmate"]

1. e4 {[%clk 0:04:57.7]} 1... d5 {[%clk 0:04:58.1]} 2. exd5 {[%clk 0:04:55.9]}
2... Qxd5 {[%clk 0:04:56.4]} 3. Nc3 {[%clk 0:04:55.5]} 3... Qd8 {[%clk
0:04:55.1]} 4. Nf3 {[%clk 0:04:54.7]} 4... Nf6 {[%clk 0:04:53.4]} 5. d4 {[%clk
0:04:53.9]} 5... Bg4 {[%clk 0:04:48]} 6. Be2 {[%clk 0:04:51.6]} 6... e6 {[%clk
0:04:46.2]} 7. h3 {[%clk 0:04:50.6]} 7... Bxf3 {[%clk 0:04:44.9]} 8. Bxf3 {[%clk
0:04:49.7]} 8... c6 {[%clk 0:04:44.5]} 9. Be3 {[%clk 0:04:47.4]} 9... Nbd7
{[%clk 0:04:42.7]} 10. O-O {[%clk 0:04:45.2]} 10... Bd6 {[%clk 0:04:40.6]} 11.
Ne2 {[%clk 0:04:35.4]} 11... O-O {[%clk 0:04:37.4]} 12. c4 {[%clk 0:04:34.2]}
12... Re8 {[%clk 0:04:32.5]} 13. b3 {[%clk 0:04:32.7]} 13... Qc7 {[%clk
0:04:28.2]} 14. Kh1 {[%clk 0:04:29.1]} 14... Rad8 {[%clk 0:04:25.5]} 15. Ng3
{[%clk 0:04:20.3]} 15... Bf4 {[%clk 0:04:17.8]} 16. Bxf4 {[%clk 0:04:11.3]}
16... Qxf4 {[%clk 0:04:15.7]} 17. Nh5 {[%clk 0:04:06.7]} 17... Nxh5 {[%clk
0:04:13]} 18. Bxh5 {[%clk 0:04:05.3]} 18... Nf6 {[%clk 0:04:11.1]} 19. Bf3
{[%clk 0:04:03.6]} 19... Qxd4 {[%clk 0:04:08.5]} 20. Qxd4 {[%clk 0:04:02]} 20...
Rxd4 {[%clk 0:04:07.5]} 21. Rad1 {[%clk 0:04:01.5]} 21... Red8 {[%clk
0:04:06.3]} 22. Rxd4 {[%clk 0:04:00.1]} 22... Rxd4 {[%clk 0:04:05.2]} 23. Rd1
{[%clk 0:03:59.8]} 23... Rxd1+ {[%clk 0:04:04.1]} 24. Bxd1 {[%clk 0:03:59.2]}
24... c5 {[%clk 0:03:59.9]} 25. Bc2 {[%clk 0:03:58.1]} 25... h6 {[%clk
0:03:57.3]} 26. a3 {[%clk 0:03:57.2]} 26... b6 {[%clk 0:03:56.2]} 27. b4 {[%clk
0:03:56.5]} 27... Kf8 {[%clk 0:03:49.8]} 28. f3 {[%clk 0:03:46.1]} 28... Nd7
{[%clk 0:03:46.1]} 29. Kg1 {[%clk 0:03:44.8]} 29... Ke7 {[%clk 0:03:44.7]} 30.
Kf2 {[%clk 0:03:44.2]} 30... Kd6 {[%clk 0:03:43.9]} 31. Ke3 {[%clk 0:03:43.7]}
31... Ne5 {[%clk 0:03:42.6]} 32. Bb3 {[%clk 0:03:41.5]} 32... f6 {[%clk
0:03:36.6]} 33. g3 {[%clk 0:03:38.5]} 33... Nc6 {[%clk 0:03:35.6]} 34. bxc5+
{[%clk 0:03:31.8]} 34... Kxc5 {[%clk 0:03:34.7]} 35. f4 {[%clk 0:03:19.6]} 35...
Na5 {[%clk 0:03:32.7]} 36. Ba2 {[%clk 0:03:17.8]} 36... Nxc4+ {[%clk 0:03:31.3]}
37. Bxc4 {[%clk 0:03:16.5]} 37... Kxc4 {[%clk 0:03:30.6]} 38. Kd2 {[%clk
0:03:15]} 38... b5 {[%clk 0:03:28.4]} 39. Kc1 {[%clk 0:03:14.5]} 39... a5 {[%clk
0:03:27.4]} 40. Kb2 {[%clk 0:03:14.1]} 40... b4 {[%clk 0:03:26.5]} 41. axb4
{[%clk 0:03:13.2]} 41... axb4 {[%clk 0:03:25.8]} 42. Kc2 {[%clk 0:03:10.8]}
42... Kd4 {[%clk 0:03:21.8]} 43. Kb3 {[%clk 0:03:08.8]} 43... Ke4 {[%clk
0:03:21.1]} 44. Kxb4 {[%clk 0:03:08.3]} 44... Kf3 {[%clk 0:03:20.1]} 45. Kc5
{[%clk 0:03:07.8]} 45... Kxg3 {[%clk 0:03:19]} 46. Kd6 {[%clk 0:03:07.4]} 46...
Kxf4 {[%clk 0:03:15.9]} 47. Kxe6 {[%clk 0:03:06.8]} 47... Kg3 {[%clk 0:03:10.2]}
48. Kf7 {[%clk 0:03:06.2]} 48... Kxh3 {[%clk 0:03:09.3]} 49. Kxg7 {[%clk
0:03:05.8]} 49... f5 {[%clk 0:03:08.8]} 50. Kxh6 {[%clk 0:03:03.9]} 50... f4
{[%clk 0:03:08.4]} 51. Kg5 {[%clk 0:03:03.7]} 51... f3 {[%clk 0:03:08]} 52. Kf4
{[%clk 0:03:03.2]} 52... f2 {[%clk 0:03:07.6]} 53. Kf3 {[%clk 0:03:02.8]} 53...
f1=Q+ {[%clk 0:03:06.3]} 54. Ke3 {[%clk 0:03:01.8]} 54... Qf5 {[%clk 0:03:04.1]}
55. Kd4 {[%clk 0:03:00.8]} 55... Kg3 {[%clk 0:03:03.2]} 56. Ke3 {[%clk
0:02:59.1]} 56... Qe5+ {[%clk 0:03:00.6]} 57. Kd3 {[%clk 0:02:57.8]} 57... Kf3
{[%clk 0:02:59.1]} 58. Kc4 {[%clk 0:02:56.6]} 58... Ke3 {[%clk 0:02:57.7]} 59.
Kb3 {[%clk 0:02:53.4]} 59... Qc5 {[%clk 0:02:56.2]} 60. Ka4 {[%clk 0:02:51.1]}
60... Qb6 {[%clk 0:02:54.2]} 61. Ka3 {[%clk 0:02:49.1]} 61... Kd3 {[%clk
0:02:53.7]} 62. Ka4 {[%clk 0:02:47.9]} 62... Kc3 {[%clk 0:02:51.3]} 63. Ka3
{[%clk 0:02:46.9]} 63... Qb3# {[%clk 0:02:50]} 0-1

[Event "Live Chess"]
[Site "Chess.com"]
[Date "2023.05.21"]
[Round "-"]
[White "garyjc"]
[Black "Fazer180"]
[Result "0-1"]
[WhiteElo "1048"]
[BlackElo "1743"]
[TimeControl "300"]
[EndTime "19:47:10 PDT"]
[Termination "Fazer180 won on time"]

1. e4 {[%clk 0:04:57.2]} 1... e6 {[%clk 0:04:58.8]} 2. d4 {[%clk 0:04:55.1]}
2... d5 {[%clk 0:04:57.7]} 3. Nc3 {[%clk 0:04:51.6]} 3... Bb4 {[%clk 0:04:55.3]}
4. exd5 {[%clk 0:04:47.8]} 4... exd5 {[%clk 0:04:48.7]} 5. Qe2+ {[%clk
0:04:40.6]} 5... Be6 {[%clk 0:04:45.2]} 6. a3 {[%clk 0:04:32.6]} 6... Bxc3+
{[%clk 0:04:40.3]} 7. bxc3 {[%clk 0:04:30.6]} 7... Nc6 {[%clk 0:04:31.1]} 8. Nf3
{[%clk 0:04:20.9]} 8... h6 {[%clk 0:04:16.4]} 9. Ne5 {[%clk 0:04:18.4]} 9...
Nxe5 {[%clk 0:04:07.4]} 10. Qxe5 {[%clk 0:04:16.2]} 10... Nf6 {[%clk 0:04:06.3]}
11. Bb5+ {[%clk 0:04:00.1]} 11... c6 {[%clk 0:04:04.2]} 12. Bd3 {[%clk
0:03:57.4]} 12... O-O {[%clk 0:03:57.8]} 13. O-O {[%clk 0:03:46.8]} 13... Re8
{[%clk 0:03:51.1]} 14. Qg3 {[%clk 0:03:40.2]} 14... Kh8 {[%clk 0:03:34.1]} 15.
Qh4 {[%clk 0:03:27.6]} 15... Ne4 {[%clk 0:03:21.3]} 16. Qf4 {[%clk 0:03:08.7]}
16... Nxc3 {[%clk 0:03:08.5]} 17. Bb2 {[%clk 0:02:43.1]} 17... Nb5 {[%clk
0:02:57.8]} 18. Bxb5 {[%clk 0:02:22.9]} 18... cxb5 {[%clk 0:02:57.7]} 19. c3
{[%clk 0:02:16.1]} 19... Rc8 {[%clk 0:02:45.5]} 20. Rae1 {[%clk 0:02:10.2]}
20... Qc7 {[%clk 0:02:42.3]} 21. Qd2 {[%clk 0:01:58.7]} 21... Qc4 {[%clk
0:02:37.8]} 22. Re5 {[%clk 0:01:50.1]} 22... Bd7 {[%clk 0:02:14.3]} 23. Rh5
{[%clk 0:01:31.3]} 23... Kh7 {[%clk 0:02:02.4]} 24. Bc1 {[%clk 0:01:26.9]} 24...
Qc6 {[%clk 0:01:54.4]} 25. Qd3+ {[%clk 0:01:10.7]} 25... Qg6 {[%clk 0:01:39.1]}
26. Qxg6+ {[%clk 0:00:39.1]} 26... fxg6 {[%clk 0:01:39]} 27. Rh4 {[%clk
0:00:33.6]} 27... Rxc3 {[%clk 0:01:32.1]} 28. Bb2 {[%clk 0:00:19.5]} 28... Rc2
{[%clk 0:01:27.9]} 29. Bc1 {[%clk 0:00:14.6]} 29... Rec8 {[%clk 0:01:17.6]} 30.
Bg5 {[%clk 0:00:01.9]} 30... Ra2 {[%clk 0:01:10.7]} 31. h3 {[%clk 0:00:00.2]}
31... Rxa3 {[%clk 0:01:08.1]} 0-1

[Event "Live Chess"]
[Site "Chess.com"]
[Date "2023.05.21"]
[Round "-"]
[White "ViktorTheCoolBoy"]
[Black "ramses-IIG"]
[Result "1-0"]
[WhiteElo "2498"]
[BlackElo "870"]
[TimeControl "300"]
[EndTime "19:47:28 PDT"]
[Termination "ViktorTheCoolBoy won by resignation"]

1. d4 {[%clk 0:04:58.7]} 1... d5 {[%clk 0:04:58.4]} 2. c4 {[%clk 0:04:57.8]}
2... dxc4 {[%clk 0:04:56]} 3. Nf3 {[%clk 0:04:56.1]} 3... b5 {[%clk 0:04:55.9]}
4. a4 {[%clk 0:04:52.1]} 4... c6 {[%clk 0:04:55]} 5. Nc3 {[%clk 0:04:46.7]} 5...
e6 {[%clk 0:04:52.2]} 6. axb5 {[%clk 0:04:45.3]} 6... cxb5 {[%clk 0:04:46.7]} 7.
Nxb5 {[%clk 0:04:44.3]} 7... Qb6 {[%clk 0:04:43.1]} 8. Nc3 {[%clk 0:04:40.7]}
8... Bd7 {[%clk 0:04:36.8]} 9. e3 {[%clk 0:04:39.5]} 9... Qc6 {[%clk 0:04:26.9]}
10. Ra4 {[%clk 0:04:33.5]} 10... Qb6 {[%clk 0:04:08.7]} 11. Rxc4 {[%clk
0:04:31.2]} 11... Bb4 {[%clk 0:03:58.3]} 12. Ne5 {[%clk 0:04:27.7]} 12... Bxc3+
{[%clk 0:03:53.1]} 13. bxc3 {[%clk 0:04:23.9]} 13... Bb5 {[%clk 0:03:40.9]} 14.
Rb4 {[%clk 0:04:22.4]} 14... a6 {[%clk 0:03:38.5]} 15. Qf3 {[%clk 0:04:20.5]}
15... Qa5 {[%clk 0:03:34.5]} 16. Qxf7+ {[%clk 0:04:18.6]} 16... Kd8 {[%clk
0:03:32.3]} 17. Bxb5 {[%clk 0:04:16.9]} 17... axb5 {[%clk 0:03:22.5]} 18. Qxg7
{[%clk 0:04:15.5]} 18... Qa3 {[%clk 0:03:17.7]} 19. Bxa3 {[%clk 0:04:13.4]}
19... Rxa3 {[%clk 0:03:15.6]} 20. Qxh8 {[%clk 0:04:09.8]} 20... Ra1+ {[%clk
0:03:12]} 21. Ke2 {[%clk 0:04:08.3]} 21... Rg1 {[%clk 0:03:10.8]} 22. Qxg8+
{[%clk 0:04:06.3]} 22... Ke7 {[%clk 0:03:08.3]} 23. Qf7+ {[%clk 0:04:04.7]} 1-0

[Event "Live Chess"]
[Site "Chess.com"]
[Date "2023.05.21"]
[Round "-"]
[White "romchyk1219"]
[Black "ClassyChameleon"]
[Result "1/2-1/2"]
[WhiteElo "646"]
[BlackElo "1077"]
[TimeControl "300"]
[EndTime "19:47:33 PDT"]
[Termination "Game drawn by repetition"]

1. e4 {[%clk 0:04:59]} 1... e5 {[%clk 0:04:58.2]} 2. Nf3 {[%clk 0:04:58.4]} 2...
Nc6 {[%clk 0:04:57.5]} 3. Bb5 {[%clk 0:04:57.8]} 3... Nf6 {[%clk 0:04:54.6]} 4.
Nc3 {[%clk 0:04:54.4]} 4... Nd4 {[%clk 0:04:53.1]} 5. Nxd4 {[%clk 0:04:50.5]}
5... exd4 {[%clk 0:04:52.7]} 6. Ne2 {[%clk 0:04:47]} 6... Nxe4 {[%clk 0:04:50]}
7. Nxd4 {[%clk 0:04:46.4]} 7... Qf6 {[%clk 0:04:44.8]} 8. Nf3 {[%clk 0:04:36.7]}
8... Bc5 {[%clk 0:04:36.2]} 9. Qe2 {[%clk 0:04:32.7]} 9... Bxf2+ {[%clk
0:04:31.6]} 10. Kf1 {[%clk 0:04:28.7]} 10... Qf4 {[%clk 0:04:00.5]} 11. d3
{[%clk 0:04:25.9]} 11... Qf6 {[%clk 0:03:18.3]} 12. Qxe4+ {[%clk 0:04:20.7]}
12... Kf8 {[%clk 0:03:13.5]} 13. Kxf2 {[%clk 0:04:18]} 13... d5 {[%clk 0:03:12]}
14. Qb4+ {[%clk 0:04:14.1]} 14... Kg8 {[%clk 0:03:09.2]} 15. Bg5 {[%clk
0:04:06.5]} 15... Qe6 {[%clk 0:02:58.2]} 16. Rae1 {[%clk 0:03:55.3]} 16... Qxe1+
{[%clk 0:02:46.7]} 17. Rxe1 {[%clk 0:03:53.3]} 17... h6 {[%clk 0:02:46.2]} 18.
Re8+ {[%clk 0:03:48.5]} 18... Kh7 {[%clk 0:02:45.6]} 19. Bh4 {[%clk 0:03:42.1]}
19... c6 {[%clk 0:02:44.3]} 20. Ba4 {[%clk 0:03:38.9]} 20... Rxe8 {[%clk
0:02:42.4]} 21. c4 {[%clk 0:03:26.1]} 21... Be6 {[%clk 0:02:31.5]} 22. cxd5
{[%clk 0:03:21.6]} 22... Bxd5 {[%clk 0:02:30.5]} 23. Bc2 {[%clk 0:03:16.9]}
23... b5 {[%clk 0:02:10]} 24. d4+ {[%clk 0:03:15.3]} 24... Kg8 {[%clk
0:02:09.1]} 25. Qd2 {[%clk 0:03:05.1]} 25... Rad8 {[%clk 0:01:58.8]} 26. Qd3
{[%clk 0:03:03.4]} 26... g6 {[%clk 0:01:51.9]} 27. b3 {[%clk 0:02:52.3]} 27...
Bxf3 {[%clk 0:01:42]} 28. Kxf3 {[%clk 0:02:51]} 28... Rd5 {[%clk 0:01:39.4]} 29.
a4 {[%clk 0:02:44.4]} 29... bxa4 {[%clk 0:01:35.7]} 30. bxa4 {[%clk 0:02:43.2]}
30... Rh5 {[%clk 0:01:09.1]} 31. g3 {[%clk 0:02:30]} 31... Rf5+ {[%clk
0:01:02.8]} 32. Kg4 {[%clk 0:02:23.2]} 32... h5+ {[%clk 0:00:50]} 33. Kh3 {[%clk
0:02:21.3]} 33... Rf2 {[%clk 0:00:42.5]} 34. Bb3 {[%clk 0:02:16.6]} 34... Rf8
{[%clk 0:00:35.3]} 35. Qa6 {[%clk 0:02:09.6]} 35... Rf3 {[%clk 0:00:26.9]} 36.
Bd1 {[%clk 0:02:00.2]} 36... Rf2 {[%clk 0:00:18.7]} 37. Qxc6 {[%clk 0:01:52]}
37... Rd2 {[%clk 0:00:17.8]} 38. Bxh5 {[%clk 0:01:44.1]} 38... gxh5 {[%clk
0:00:15.3]} 39. Qf3 {[%clk 0:01:36.5]} 39... Rxd4 {[%clk 0:00:13.8]} 40. Qxh5
{[%clk 0:01:34.5]} 40... f5 {[%clk 0:00:12.3]} 41. Qh6 {[%clk 0:01:28.1]} 41...
Rxh4+ {[%clk 0:00:10.5]} 42. Qxh4 {[%clk 0:01:26.6]} 42... f4 {[%clk 0:00:10.2]}
43. gxf4 {[%clk 0:01:24.7]} 43... Kg7 {[%clk 0:00:08.3]} 44. Qg4+ {[%clk
0:01:24.1]} 44... Kf6 {[%clk 0:00:07.4]} 45. Qh4+ {[%clk 0:01:21.8]} 45... Kf5
{[%clk 0:00:06.6]} 46. Qg5+ {[%clk 0:01:19.7]} 46... Ke4 {[%clk 0:00:05.3]} 47.
Qc5 {[%clk 0:01:16.3]} 47... Rxf4 {[%clk 0:00:04.5]} 48. Qc4+ {[%clk 0:01:14.8]}
48... Kf3 {[%clk 0:00:03.7]} 49. Qc3+ {[%clk 0:01:10.5]} 49... Kf2 {[%clk
0:00:02.5]} 50. Qc2+ {[%clk 0:01:08.8]} 50... Kf3 {[%clk 0:00:01.6]} 51. Qc3+
{[%clk 0:01:08.1]} 51... Kf2 {[%clk 0:00:01.3]} 52. Qc5+ {[%clk 0:01:06.4]}
52... Kf3 {[%clk 0:00:00.2]} 53. Qc3+ {[%clk 0:01:05]} 1/2-1/2

[Event "Live Chess"]
[Site "Chess.com"]
[Date "2023.05.21"]
[Round "-"]
[White "Tushinskiy"]
[Black "alanmike75"]
[Result "1-0"]
[WhiteElo "2188"]
[BlackElo "1607"]
[TimeControl "300"]
[EndTime "19:47:38 PDT"]
[Termination "Tushinskiy won on time"]

1. d4 {[%clk 0:04:58.1]} 1... d5 {[%clk 0:04:58.8]} 2. c3 {[%clk 0:04:58]} 2...
Nf6 {[%clk 0:04:57]} 3. Nf3 {[%clk 0:04:57.9]} 3... Nc6 {[%clk 0:04:55.3]} 4.
Bf4 {[%clk 0:04:57.2]} 4... e6 {[%clk 0:04:53.5]} 5. Bg3 {[%clk 0:04:57.1]} 5...
Bd6 {[%clk 0:04:52.2]} 6. Nbd2 {[%clk 0:04:57]} 6... O-O {[%clk 0:04:49.9]} 7.
Qc2 {[%clk 0:04:56.1]} 7... Re8 {[%clk 0:04:48.1]} 8. e4 {[%clk 0:04:55.2]} 8...
dxe4 {[%clk 0:04:46.2]} 9. Nxe4 {[%clk 0:04:55.1]} 9... Nxe4 {[%clk 0:04:42.3]}
10. Qxe4 {[%clk 0:04:55]} 10... Bxg3 {[%clk 0:04:35]} 11. hxg3 {[%clk
0:04:53.7]} 11... h6 {[%clk 0:04:33.7]} 12. Bd3 {[%clk 0:04:52.1]} 12... f5
{[%clk 0:04:30.5]} 13. Qe3 {[%clk 0:04:50.8]} 13... e5 {[%clk 0:04:24.7]} 14.
Nxe5 {[%clk 0:04:45.9]} 14... Nxe5 {[%clk 0:04:07.9]} 15. dxe5 {[%clk
0:04:45.8]} 15... Qd5 {[%clk 0:03:51.9]} 16. f4 {[%clk 0:04:43.7]} 16... Qxg2
{[%clk 0:03:42.2]} 17. O-O-O {[%clk 0:04:39.6]} 17... Qc6 {[%clk 0:03:37]} 18.
Rh5 {[%clk 0:04:35.5]} 18... Rf8 {[%clk 0:03:01.7]} 19. Bc2 {[%clk 0:04:16.3]}
19... Be6 {[%clk 0:02:59]} 20. b3 {[%clk 0:04:14.4]} 20... a5 {[%clk 0:02:56.4]}
21. a4 {[%clk 0:04:11]} 21... b5 {[%clk 0:02:50.5]} 22. Rd4 {[%clk 0:04:09.6]}
22... bxa4 {[%clk 0:02:46.4]} 23. bxa4 {[%clk 0:04:08]} 23... Rab8 {[%clk
0:02:37]} 24. g4 {[%clk 0:04:07]} 24... fxg4 {[%clk 0:02:27.6]} 25. f5 {[%clk
0:04:05.8]} 25... Bf7 {[%clk 0:02:15.5]} 26. Rh4 {[%clk 0:04:03.5]} 26... Qf3
{[%clk 0:02:10.6]} 27. Qxf3 {[%clk 0:03:59.3]} 27... gxf3 {[%clk 0:02:09]} 28.
e6 {[%clk 0:03:58.4]} 28... Be8 {[%clk 0:01:52.8]} 29. Rhf4 {[%clk 0:03:56]}
29... Bc6 {[%clk 0:01:47.6]} 30. Rc4 {[%clk 0:03:54.6]} 30... Rb6 {[%clk
0:01:45.8]} 31. Rc5 {[%clk 0:03:44.6]} 31... Re8 {[%clk 0:01:28.5]} 32. Rxa5
{[%clk 0:03:41.6]} 32... Reb8 {[%clk 0:01:07.9]} 33. Re5 {[%clk 0:03:38.2]}
33... Be8 {[%clk 0:00:57.4]} 34. a5 {[%clk 0:03:34.7]} 34... Rc6 {[%clk
0:00:51.4]} 35. Rxf3 {[%clk 0:03:32.5]} 35... Ra8 {[%clk 0:00:36.4]} 36. Kd2
{[%clk 0:03:28.3]} 36... Rd6+ {[%clk 0:00:28.6]} 37. Rd3 {[%clk 0:03:27.1]}
37... Rad8 {[%clk 0:00:24.4]} 38. Rxd6 {[%clk 0:03:23.8]} 38... Rxd6+ {[%clk
0:00:20.7]} 39. Ke3 {[%clk 0:03:22.6]} 39... Rc6 {[%clk 0:00:15.3]} 40. Kd4
{[%clk 0:03:19.9]} 40... Rd6+ {[%clk 0:00:11.3]} 41. Rd5 {[%clk 0:03:19.1]}
41... Ra6 {[%clk 0:00:06.4]} 42. Rd8 {[%clk 0:03:14.3]} 42... Kf8 {[%clk
0:00:04.8]} 43. Ba4 {[%clk 0:03:12.6]} 43... c6 {[%clk 0:00:02.8]} 44. Rc8
{[%clk 0:03:01.7]} 1-0